fUSD/lending_fUSD_20241220
["ID","MTS","AMOUNT","RATE_DAILY","PERIOD"]
[346060168,1734684640738,-3214.9340634,0.00021733,2]
[346060169,1734684640747,-828.17,0.00021748,2]
[346060170,1734684640760,-275.6666,0.00021799,2]
[346060171,1734684640769,-200.0,0.000218,7]
[346060172,1734684640778,-203.7120636,0.00021817,2]
[346060173,1734684640787,-500.0,0.00021853,2]
[346060174,1734684640796,-293.4342943,0.0002189,4]
[346060175,1734684640807,-150.0,0.0002189,4]
[346060176,1734684640816,-150.0,0.0002189,4]
[346060177,1734684640827,-152.35171148,0.0002189,4]
[346060178,1734684640837,-200.0,0.000219,7]
[346060179,1734684640846,-155.78,0.00021907,2]
[346060180,1734684640857,-155.78,0.00021907,2]
[346060181,1734684640867,-155.78,0.00021907,2]
[346060182,1734684640876,-155.78,0.00021907,2]
[346060183,1734684640885,-155.78,0.00021907,2]
[346060184,1734684640896,-155.78,0.00021907,2]
[346060185,1734684640905,-155.78,0.00021907,2]
[346060186,1734684640914,-991.66,0.00021913,2]
[346060187,1734684640923,-150.0,0.00021916,2]
[346060188,1734684640933,-150.0,0.00021916,2]
[346060189,1734684640942,-300.0,0.00021916,2]
[346060190,1734684640951,-675.33170954,0.00021916,2]
[346060191,1734684640960,-3048.84763378,0.00021917,2]
[346060192,1734684640969,-456.63962409,0.00021917,3]
[346060193,1734684640979,-2122642.79366023,0.00021917,3]
[346060194,1734684640988,-151.0,0.00021917,2]
[346060195,1734684640997,-152.247928,0.00021917,2]
[346060196,1734684641008,-151.0,0.00021917,2]
[346060197,1734684641018,-153.500128,0.00021917,2]
[346060198,1734684641027,-151.0,0.00021917,2]
[346060199,1734684641037,-151.719233,0.00021917,2]
[346060200,1734684641046,-151.0,0.00021917,2]
[346060201,1734684641056,-151.0,0.00021917,2]
[346060202,1734684641067,-151.0,0.00021917,2]
[346060203,1734684641076,-151.0,0.00021917,2]
[346060204,1734684641086,-152.575817,0.00021917,2]
[346060205,1734684641095,-151.0,0.00021917,2]
[346060206,1734684641105,-151.0,0.00021917,2]
[346060207,1734684641114,-153.116676,0.00021917,2]
[346060208,1734684641124,-151.0,0.00021917,2]
[346060209,1734684641135,-151.0,0.00021917,2]
[346060210,1734684641144,-151.0,0.00021917,2]
[346060211,1734684641154,-293.207276,0.00021917,2]
[346060212,1734684641164,-151.0,0.00021917,2]
[346060213,1734684641174,-151.0,0.00021917,2]
[346060214,1734684641183,-151.0,0.00021917,2]
[346060215,1734684641193,-197.402898,0.00021917,2]
[346060216,1734684641203,-361.695353,0.00021917,4]
[346060217,1734684641212,-361.695353,0.00021917,4]
[346060218,1734684641221,-695.472697,0.00021917,4]
[346060219,1734684641231,-361.695353,0.00021917,4]
[346060220,1734684641240,-695.472697,0.00021917,4]
[346060221,1734684641249,-361.695353,0.00021917,4]
[346060222,1734684641260,-695.472697,0.00021917,4]
[346060223,1734684641270,-361.695353,0.00021917,4]
[346060224,1734684641280,-695.472697,0.00021917,4]
[346060225,1734684641290,-361.695353,0.00021917,4]
[346060226,1734684641299,-695.472697,0.00021917,4]
[346060227,1734684641309,-361.695353,0.00021917,4]
[346060228,1734684641319,-695.472697,0.00021917,4]
[346060229,1734684641329,-361.695353,0.00021917,4]
[346060230,1734684641440,-695.472697,0.00021917,4]
[346060231,1734684641450,-361.695353,0.00021917,4]
[346060232,1734684641459,-695.472697,0.00021917,4]
[346060233,1734684641469,-361.695353,0.00021917,4]
[346060234,1734684641478,-695.472697,0.00021917,4]
[346060235,1734684641487,-695.472697,0.00021917,4]
[346060236,1734684641496,-151.0,0.00021917,2]
[346060237,1734684641506,-151.0,0.00021917,2]
[346060238,1734684641517,-151.0,0.00021917,2]
[346060239,1734684641527,-151.0,0.00021917,2]
[346060240,1734684641536,-151.0,0.00021917,2]
[346060241,1734684641546,-151.0,0.00021917,2]
[346060242,1734684641555,-151.0,0.00021917,2]
[346060243,1734684641564,-151.0,0.00021917,2]
[346060244,1734684641573,-151.0,0.00021917,2]
[346060245,1734684641583,-151.0,0.00021917,2]
[346060246,1734684641593,-151.0,0.00021917,2]
[346060247,1734684641602,-151.0,0.00021917,2]
[346060248,1734684641611,-151.0,0.00021917,2]
[346060249,1734684641620,-151.0,0.00021917,2]
[346060250,1734684641629,-248.020158,0.00021917,2]
[346060251,1734684641639,-373.99266827,0.00021917,4]
[346060252,1734684641648,-159.15574011,0.00021917,2]
[346060253,1734684641657,-151.0,0.00021917,2]
[346060254,1734684641667,-151.0,0.00021917,2]
[346060255,1734684641677,-153.37453,0.00021917,2]
[346060256,1734684641686,-501.83653923,0.00021917,4]
[346060257,1734684641695,-502.19652996,0.00021917,4]
[346060258,1734684641705,-154.508041,0.00021917,2]
[346060259,1734684641715,-500.0,0.00021917,4]
[346060260,1734684641724,-151.0,0.00021917,2]
[346060261,1734684641734,-151.0,0.00021917,2]
[346060262,1734684641742,-151.0,0.00021917,2]
[346060263,1734684641752,-151.0,0.00021917,2]
[346060264,1734684641764,-152.88119,0.00021917,2]
[346060265,1734684641774,-507.09008636,0.00021917,4]
[346060266,1734684641783,-504.32702473,0.00021917,4]
[346060267,1734684641792,-504.09179015,0.00021917,4]
[346060268,1734684641801,-500.0,0.00021917,4]
[346060269,1734684641814,-500.0,0.00021917,4]
[346060270,1734684641823,-598.34685082,0.00021917,4]
[346060271,1734684641832,-506.50031712,0.00021917,4]
[346060272,1734684641842,-500.0,0.00021917,4]
[346060273,1734684641853,-500.0,0.00021917,4]
[346060274,1734684641862,-509.42657491,0.00021917,4]
[346060275,1734684641872,-500.0,0.00021917,4]
[346060276,1734684641883,-500.0,0.00021917,4]
[346060277,1734684641893,-500.0,0.00021917,4]
[346060278,1734684641903,-500.0,0.00021917,4]
[346060279,1734684641912,-500.0,0.00021917,4]
[346060280,1734684641921,-500.0,0.00021917,4]
[346060281,1734684641931,-500.0,0.00021917,4]
[346060282,1734684641940,-515.6415777,0.00021917,4]
[346060283,1734684641949,-500.0,0.00021917,4]
[346060284,1734684641959,-200.0,0.00021917,4]
[346060285,1734684641969,-504.83990764,0.00021917,4]
[346060286,1734684641978,-500.0,0.00021917,4]
[346060287,1734684641987,-500.0,0.00021917,4]
[346060288,1734684641996,-464.28771897,0.00021917,4]
[346060289,1734684642006,-508.7178229,0.00021917,4]
[346060290,1734684642017,-502.66332586,0.00021917,4]
[346060291,1734684642026,-500.0,0.00021917,4]
[346060292,1734684642035,-500.0,0.00021917,4]
[346060293,1734684642044,-500.0,0.00021917,4]
[346060294,1734684642053,-500.0,0.00021917,4]
[346060295,1734684642063,-500.0,0.00021917,4]
[346060296,1734684642072,-500.0,0.00021917,4]
[346060297,1734684642081,-500.0,0.00021917,4]
[346060298,1734684642091,-637.21925411,0.00021917,4]
[346060299,1734684642101,-503.43490552,0.00021917,4]
[346060300,1734684642111,-151.0,0.00021917,2]
[346060301,1734684642121,-153.46118,0.00021917,2]
[346060302,1734684642130,-502.83125742,0.00021917,4]
[346060303,1734684642139,-500.0,0.00021917,4]
[346060304,1734684642149,-500.0,0.00021917,4]
[346060305,1734684642158,-500.0,0.00021917,4]
[346060306,1734684642167,-500.0,0.00021917,4]
[346060307,1734684642177,-500.0,0.00021917,4]
[346060308,1734684642186,-465.97925994,0.00021917,4]
[346060309,1734684642195,-500.0,0.00021917,4]
[346060310,1734684642205,-506.80184018,0.00021917,4]
[346060311,1734684642214,-515.99270005,0.00021917,4]
[346060312,1734684642224,-500.0,0.00021917,4]
[346060313,1734684642233,-581.86030066,0.00021917,4]
[346060314,1734684642242,-500.0,0.00021917,3]
[346060315,1734684642252,-507.83971035,0.00021917,4]
[346060316,1734684642264,-629.7356982,0.00021917,3]
[346060317,1734684642274,-152.044331,0.00021917,2]
[346060318,1734684642283,-500.0,0.00021917,4]
[346060319,1734684642293,-500.0,0.00021917,4]
[346060320,1734684642302,-533.46535307,0.00021917,4]
[346060321,1734684642312,-500.0,0.00021917,4]
[346060322,1734684642321,-502.35181554,0.00021917,4]
[346060323,1734684642330,-500.0,0.00021917,4]
[346060324,1734684642339,-500.0,0.00021917,4]
[346060325,1734684642348,-500.0,0.00021917,4]
[346060326,1734684642357,-500.0,0.00021917,4]
[346060327,1734684642366,-500.0,0.00021917,4]
[346060328,1734684642375,-500.0,0.00021917,4]
[346060329,1734684642384,-500.0,0.00021917,4]
[346060330,1734684642393,-500.0,0.00021917,4]
[346060331,1734684642403,-500.0,0.00021917,4]
[346060332,1734684642412,-500.0,0.00021917,4]
[346060333,1734684642421,-516.43107754,0.00021917,4]
[346060334,1734684642430,-500.0,0.00021917,4]
[346060335,1734684642439,-500.0,0.00021917,4]
[346060336,1734684642448,-500.0,0.00021917,4]
[346060337,1734684642457,-500.0,0.00021917,4]
[346060338,1734684642466,-500.0,0.00021917,4]
[346060339,1734684642475,-500.0,0.00021917,4]
[346060340,1734684642484,-500.0,0.00021917,4]
[346060341,1734684642493,-500.0,0.00021917,4]
[346060342,1734684642502,-504.43005089,0.00021917,4]
[346060343,1734684642513,-500.0,0.00021917,4]
[346060344,1734684642522,-500.0,0.00021917,4]
[346060345,1734684642531,-500.0,0.00021917,4]
[346060346,1734684642540,-500.0,0.00021917,4]
[346060347,1734684642549,-206.63577924,0.00021917,4]
[346060348,1734684642558,-500.0,0.00021917,4]
[346060349,1734684642567,-500.0,0.00021917,4]
[346060350,1734684642576,-508.90907133,0.00021917,4]
[346060351,1734684642585,-507.024002,0.00021917,4]
[346060352,1734684642594,-151.0,0.00021917,2]
[346060353,1734684642603,-151.0,0.00021917,2]
[346060354,1734684642612,-151.0,0.00021917,2]
[346060355,1734684642621,-151.0,0.00021917,2]
[346060356,1734684642631,-151.0,0.00021917,2]
[346060357,1734684642640,-151.0,0.00021917,2]
[346060358,1734684642649,-151.0,0.00021917,2]
[346060359,1734684642658,-500.0,0.00021917,4]
[346060360,1734684642667,-500.0,0.00021917,4]
[346060361,1734684642676,-265.714962,0.00021917,2]
[346060362,1734684642685,-500.0,0.00021917,4]
[346060364,1734684642695,-500.0,0.00021917,4]
[346060365,1734684642705,-500.0,0.00021917,4]
[346060367,1734684642714,-517.46615995,0.00021917,4]
[346060368,1734684642723,-500.0,0.00021917,4]
[346060369,1734684642732,-151.0,0.00021917,2]
[346060370,1734684642741,-500.0,0.00021917,4]
[346060371,1734684642750,-500.0,0.00021917,4]
[346060372,1734684642761,-151.0,0.00021917,2]
[346060373,1734684642771,-507.1162625,0.00021917,4]
[346060374,1734684642780,-153.947305,0.00021917,2]
[346060375,1734684642789,-500.0,0.00021917,4]
[346060376,1734684642798,-503.35876919,0.00021917,4]
[346060377,1734684642811,-151.0,0.00021917,2]
[346060378,1734684642820,-151.0,0.00021917,2]
[346060380,1734684642830,-219.662128,0.00021917,2]
[346060381,1734684642839,-508.02627909,0.00021917,4]
[346060382,1734684642848,-506.73995814,0.00021917,4]
[346060383,1734684642858,-504.37807476,0.00021917,4]
[346060384,1734684642868,-500.0,0.00021917,4]
[346060385,1734684642877,-501.91489999,0.00021917,4]
[346060386,1734684642891,-510.2993446,0.00021917,4]
[346060387,1734684642902,-354.64732952,0.00021917,4]
[346060388,1734684642911,-551.1129801,0.00021917,4]
[346060389,1734684642920,-500.0,0.00021917,4]
[346060390,1734684642930,-500.0,0.00021917,4]
[346060391,1734684642940,-508.64730652,0.00021917,4]
[346060392,1734684642949,-505.70405833,0.00021917,4]
[346060393,1734684642958,-500.0,0.00021917,4]
[346060394,1734684642969,-505.09812542,0.00021917,4]
[346060395,1734684642980,-500.0,0.00021917,4]
[346060396,1734684642990,-508.93536629,0.00021917,4]
[346060398,1734684643000,-500.0,0.00021917,4]
[346060399,1734684643014,-500.0,0.00021917,4]
[346060401,1734684643023,-500.0,0.00021917,4]
[346060413,1734684643128,-500.0,0.00021917,4]
[346060414,1734684643139,-500.0,0.00021917,4]
[346060415,1734684643150,-500.0,0.00021917,4]
[346060416,1734684643159,-500.0,0.00021917,4]
[346060417,1734684643169,-500.0,0.00021917,4]
[346060418,1734684643179,-500.0,0.00021917,4]
[346060419,1734684643188,-287.38592724,0.00021917,4]
[346060420,1734684643198,-500.0,0.00021917,4]
[346060421,1734684643208,-268.89916288,0.00021917,4]
[346060422,1734684643218,-500.0,0.00021917,4]
[346060423,1734684643228,-505.7503826,0.00021917,4]
[346060424,1734684643238,-500.0,0.00021917,4]
[346060425,1734684643248,-516.55035613,0.00021917,4]
[346060426,1734684643262,-505.93875524,0.00021917,4]
[346060427,1734684643272,-500.0,0.00021917,4]
[346060428,1734684643282,-500.0,0.00021917,4]
[346060429,1734684643291,-503.95262231,0.00021917,4]
[346060430,1734684643301,-510.21891499,0.00021917,4]
[346060431,1734684643311,-507.19409476,0.00021917,4]
[346060432,1734684643321,-500.0,0.00021917,4]
[346060433,1734684643331,-500.0,0.00021917,4]
[346060434,1734684643341,-500.0,0.00021917,4]
[346060435,1734684643351,-500.0,0.00021917,4]
[346060436,1734684643361,-500.0,0.00021917,4]
[346060438,1734684643370,-500.0,0.00021917,4]
[346060439,1734684643380,-509.80202517,0.00021917,4]
[346060440,1734684643390,-500.0,0.00021917,4]
[346060441,1734684643399,-505.85392306,0.00021917,4]
[346060442,1734684643409,-151.0,0.00021917,2]
[346060443,1734684643419,-151.0,0.00021917,2]
[346060444,1734684643428,-151.749554,0.00021917,2]
[346060445,1734684643438,-507.93769767,0.00021917,4]
[346060446,1734684643447,-503.43173177,0.00021917,4]
[346060447,1734684643457,-500.0,0.00021917,4]
[346060448,1734684643467,-427.1129837,0.00021917,4]
[346060449,1734684643476,-500.0,0.00021917,4]
[346060451,1734684643487,-500.0,0.00021917,4]
[346060453,1734684643496,-500.0,0.00021917,4]
[346060455,1734684643506,-500.0,0.00021917,4]
[346060456,1734684643520,-500.0,0.00021917,4]
[346060458,1734684643529,-500.0,0.00021917,4]
[346060459,1734684643539,-500.0,0.00021917,4]
[346060460,1734684643548,-500.0,0.00021917,4]
[346060461,1734684643557,-500.0,0.00021917,4]
[346060462,1734684643566,-500.0,0.00021917,4]
[346060464,1734684643576,-502.74122988,0.00021917,4]
[346060466,1734684643586,-500.0,0.00021917,4]
[346060468,1734684643596,-500.0,0.00021917,4]
[346060470,1734684643605,-500.0,0.00021917,4]
[346060472,1734684643615,-429.5444101,0.00021917,4]
[346060474,1734684643624,-500.0,0.00021917,4]
[346060476,1734684643633,-500.0,0.00021917,4]
[346060478,1734684643643,-500.0,0.00021917,4]
[346060480,1734684643652,-500.0,0.00021917,4]
[346060482,1734684643661,-508.74625598,0.00021917,4]
[346060484,1734684643671,-500.0,0.00021917,4]
[346060485,1734684643680,-500.0,0.00021917,4]
[346060486,1734684643689,-500.0,0.00021917,4]
[346060487,1734684643698,-500.0,0.00021917,4]
[346060488,1734684643708,-500.0,0.00021917,4]
[346060489,1734684643717,-500.0,0.00021917,4]
[346060490,1734684643727,-562.57833516,0.00021917,4]
[346060491,1734684643736,-500.0,0.00021917,4]
[346060492,1734684643745,-500.0,0.00021917,4]
[346060493,1734684643754,-604.87064028,0.00021917,4]
[346060494,1734684643767,-507.16788664,0.00021917,4]
[346060495,1734684643777,-500.0,0.00021917,4]
[346060496,1734684643787,-500.0,0.00021917,4]
[346060497,1734684643797,-520.84683236,0.00021917,4]
[346060498,1734684643810,-385.86886635,0.00021917,4]
[346060499,1734684643820,-151.919254,0.00021917,2]
[346060500,1734684643839,-508.35124469,0.00021917,4]
[346060501,1734684643850,-500.0,0.00021917,4]
[346060502,1734684643860,-514.88805663,0.00021917,4]
[346060503,1734684643869,-500.0,0.00021917,4]
[346060504,1734684643880,-503.52946172,0.00021917,4]
[346060505,1734684643889,-267.60245696,0.00021917,4]
[346060506,1734684643900,-502.58838564,0.00021917,4]
[346060507,1734684643909,-500.0,0.00021917,4]
[346060508,1734684643919,-536.89074713,0.00021917,4]
[346060509,1734684643929,-500.0,0.00021917,4]
[346060510,1734684643938,-500.0,0.00021917,4]
[346060511,1734684643947,-500.0,0.00021917,4]
[346060512,1734684643956,-500.0,0.00021917,4]
[346060513,1734684643965,-500.0,0.00021917,4]
[346060514,1734684643974,-500.0,0.00021917,4]
[346060515,1734684643983,-500.0,0.00021917,4]
[346060516,1734684643992,-509.67489028,0.00021917,4]
[346060517,1734684644001,-508.59480066,0.00021917,4]
[346060518,1734684644013,-500.0,0.00021917,4]
[346060519,1734684644023,-500.0,0.00021917,4]
[346060520,1734684644032,-505.38387294,0.00021917,4]
[346060521,1734684644042,-500.0,0.00021917,4]
[346060522,1734684644052,-509.101204,0.00021917,4]
[346060523,1734684644061,-500.0,0.00021917,4]
[346060524,1734684644071,-500.0,0.00021917,4]
[346060525,1734684644080,-509.92918739,0.00021917,4]
[346060526,1734684644089,-500.0,0.00021917,4]
[346060527,1734684644099,-500.0,0.00021917,4]
[346060528,1734684644109,-320.67659102,0.00021917,4]
[346060529,1734684644118,-500.0,0.00021917,4]
[346060530,1734684644127,-500.0,0.00021917,4]
[346060531,1734684644136,-500.0,0.00021917,4]
[346060532,1734684644145,-438.2566754,0.00021917,4]
[346060533,1734684644155,-500.0,0.00021917,4]
[346060534,1734684644164,-500.0,0.00021917,4]
[346060535,1734684644173,-503.89381831,0.00021917,4]
[346060536,1734684644182,-644.80406936,0.00021917,4]
[346060537,1734684644192,-505.01677257,0.00021917,4]
[346060538,1734684644201,-500.0,0.00021917,4]
[346060539,1734684644210,-630.16670719,0.00021917,4]
[346060540,1734684644219,-500.0,0.00021917,4]
[346060541,1734684644228,-504.47518171,0.00021917,4]
[346060542,1734684644238,-500.0,0.00021917,4]
[346060543,1734684644247,-500.0,0.00021917,4]
[346060544,1734684644257,-500.0,0.00021917,4]
[346060545,1734684644270,-500.0,0.00021917,4]
[346060546,1734684644280,-500.0,0.00021917,4]
[346060547,1734684644290,-500.0,0.00021917,4]
[346060548,1734684644299,-500.0,0.00021917,4]
[346060549,1734684644309,-509.03671443,0.00021917,4]
[346060550,1734684644318,-370.62380661,0.00021917,4]
[346060551,1734684644327,-151.94450058,0.00021917,4]
[346060552,1734684644336,-500.0,0.00021917,4]
[346060553,1734684644346,-500.0,0.00021917,4]
[346060554,1734684644355,-511.5429237,0.00021917,4]
[346060555,1734684644365,-500.0,0.00021917,4]
[346060556,1734684644375,-500.0,0.00021917,4]
[346060557,1734684644385,-509.368208,0.00021917,4]
[346060558,1734684644395,-151.0,0.00021917,2]
[346060559,1734684644404,-151.0,0.00021917,2]
[346060560,1734684644413,-151.0,0.00021917,2]
[346060561,1734684644422,-500.0,0.00021917,4]
[346060562,1734684644431,-500.0,0.00021917,4]
[346060563,1734684644441,-151.0,0.00021917,2]
[346060564,1734684644450,-500.0,0.00021917,4]
[346060565,1734684644459,-151.0,0.00021917,2]
[346060566,1734684644468,-515.75650772,0.00021917,4]
[346060567,1734684644477,-515.78042673,0.00021917,4]
[346060568,1734684644486,-156.786087,0.00021917,2]
[346060569,1734684644495,-507.73969861,0.00021917,4]
[346060570,1734684644505,-500.0,0.00021917,4]
[346060571,1734684644517,-500.0,0.00021917,4]
[346060572,1734684644527,-289.47938422,0.00021917,4]
[346060573,1734684644536,-510.32360361,0.00021917,4]
[346060574,1734684644545,-500.0,0.00021917,4]
[346060575,1734684644554,-500.0,0.00021917,4]
[346060576,1734684644563,-500.0,0.00021917,4]
[346060577,1734684644572,-500.0,0.00021917,4]
[346060578,1734684644581,-395.23345388,0.00021917,4]
[346060579,1734684644590,-500.0,0.00021917,4]
[346060580,1734684644599,-500.0,0.00021917,4]
[346060581,1734684644607,-500.0,0.00021917,4]
[346060582,1734684644616,-506.02672289,0.00021917,4]
[346060583,1734684644716,-500.0,0.00021917,4]
[346060584,1734684644725,-317.47214974,0.00021917,4]
[346060585,1734684644734,-500.0,0.00021917,4]
[346060586,1734684644744,-500.0,0.00021917,4]
[346060587,1734684644754,-509.98843524,0.00021917,4]
[346060588,1734684644767,-500.0,0.00021917,4]
[346060589,1734684644776,-500.0,0.00021917,4]
[346060590,1734684644786,-502.24739664,0.00021917,4]
[346060591,1734684644795,-517.23005342,0.00021917,4]
[346060592,1734684644804,-500.0,0.00021917,4]
[346060593,1734684644814,-500.0,0.00021917,4]
[346060594,1734684644824,-505.96259717,0.00021917,4]
[346060595,1734684644834,-500.0,0.00021917,4]
[346060596,1734684644845,-500.0,0.00021917,4]
[346060597,1734684644854,-530.96630279,0.00021917,4]
[346060598,1734684644863,-151.76341,0.00021917,2]
[346060599,1734684644872,-509.36336558,0.00021917,4]
[346060600,1734684644881,-500.0,0.00021917,4]
[346060601,1734684644890,-500.0,0.00021917,4]
[346060602,1734684644900,-517.60325109,0.00021917,4]
[346060603,1734684644909,-500.0,0.00021917,4]
[346060604,1734684644918,-500.0,0.00021917,4]
[346060605,1734684644928,-500.0,0.00021917,4]
[346060606,1734684644938,-500.0,0.00021917,4]
[346060607,1734684644947,-151.0,0.00021917,2]
[346060608,1734684644956,-500.0,0.00021917,4]
[346060609,1734684644965,-151.809481,0.00021917,2]
[346060610,1734684644973,-500.0,0.00021917,4]
[346060611,1734684644982,-500.0,0.00021917,4]
[346060612,1734684644991,-500.0,0.00021917,4]
[346060613,1734684645000,-516.73878984,0.00021917,4]
[346060614,1734684645012,-500.0,0.00021917,4]
[346060615,1734684645021,-509.72508136,0.00021917,4]
[346060616,1734684645030,-500.0,0.00021917,4]
[346060617,1734684645039,-500.0,0.00021917,4]
[346060618,1734684645048,-500.0,0.00021917,4]
[346060619,1734684645058,-500.0,0.00021917,4]
[346060620,1734684645067,-500.0,0.00021917,4]
[346060621,1734684645077,-500.0,0.00021917,4]
[346060622,1734684645086,-500.0,0.00021917,4]
[346060623,1734684645095,-520.40942407,0.00021917,4]
[346060624,1734684645105,-500.0,0.00021917,4]
[346060625,1734684645114,-500.0,0.00021917,4]
[346060626,1734684645124,-606.57829412,0.00021917,4]
[346060627,1734684645133,-500.0,0.00021917,4]
[346060628,1734684645143,-514.87039799,0.00021917,4]
[346060629,1734684645152,-500.0,0.00021917,4]
[346060630,1734684645161,-500.0,0.00021917,4]
[346060631,1734684645170,-512.08936549,0.00021917,4]
[346060632,1734684645180,-500.0,0.00021917,4]
[346060633,1734684645190,-478.97614731,0.00021917,4]
[346060634,1734684645200,-500.0,0.00021917,4]
[346060635,1734684645210,-512.9426373,0.00021917,4]
[346060636,1734684645220,-500.0,0.00021917,4]
[346060637,1734684645229,-500.0,0.00021917,4]
[346060638,1734684645238,-560.39815081,0.00021917,4]
[346060639,1734684645247,-500.0,0.00021917,4]
[346060640,1734684645257,-500.0,0.00021917,4]
[346060641,1734684645270,-506.23490181,0.00021917,4]
[346060642,1734684645279,-500.0,0.00021917,4]
[346060643,1734684645288,-500.0,0.00021917,4]
[346060644,1734684645298,-500.0,0.00021917,4]
[346060645,1734684645307,-500.0,0.00021917,4]
[346060646,1734684645316,-500.0,0.00021917,4]
[346060647,1734684645325,-518.61080066,0.00021917,4]
[346060648,1734684645336,-628.24405476,0.00021917,4]
[346060649,1734684645345,-500.0,0.00021917,4]
[346060650,1734684645354,-500.0,0.00021917,4]
[346060651,1734684645363,-500.0,0.00021917,4]
[346060652,1734684645373,-521.45804582,0.00021917,4]
[346060653,1734684645382,-500.0,0.00021917,4]
[346060654,1734684645391,-628.62371483,0.00021917,4]
[346060655,1734684645400,-151.0,0.00021917,2]
[346060656,1734684645410,-500.0,0.00021917,4]
[346060657,1734684645419,-151.0,0.00021917,2]
[346060658,1734684645428,-609.49217187,0.00021917,4]
[346060659,1734684645437,-151.0,0.00021917,2]
[346060660,1734684645446,-151.0,0.00021917,2]
[346060661,1734684645456,-151.0,0.00021917,2]
[346060662,1734684645466,-151.0,0.00021917,2]
[346060663,1734684645476,-151.0,0.00021917,2]
[346060664,1734684645485,-505.27688879,0.00021917,4]
[346060665,1734684645494,-151.0,0.00021917,2]
[346060666,1734684645503,-500.0,0.00021917,4]
[346060667,1734684645517,-500.0,0.00021917,4]
[346060668,1734684645526,-510.87619512,0.00021917,4]
[346060669,1734684645535,-151.0,0.00021917,2]
[346060670,1734684645545,-151.0,0.00021917,2]
[346060671,1734684645554,-151.0,0.00021917,2]
[346060672,1734684645563,-504.07084388,0.00021917,4]
[346060673,1734684645573,-151.0,0.00021917,2]
[346060674,1734684645582,-500.0,0.00021917,4]
[346060675,1734684645591,-500.0,0.00021917,4]
[346060676,1734684645600,-151.0,0.00021917,2]
[346060677,1734684645609,-505.8497457,0.00021917,4]
[346060678,1734684645618,-289.903528,0.00021917,2]
[346060679,1734684645627,-504.49641757,0.00021917,4]
[346060680,1734684645637,-500.0,0.00021917,4]
[346060681,1734684645647,-359.63804274,0.00021917,4]
[346060682,1734684645656,-500.0,0.00021917,4]
[346060683,1734684645666,-500.0,0.00021917,4]
[346060686,1734684645675,-500.0,0.00021917,4]
[346060688,1734684645684,-500.0,0.00021917,4]
[346060690,1734684645694,-624.07750828,0.00021917,4]
[346060691,1734684645703,-500.0,0.00021917,4]
[346060692,1734684645712,-500.0,0.00021917,4]
[346060693,1734684645722,-500.0,0.00021917,4]
[346060695,1734684645731,-500.0,0.00021917,4]
[346060696,1734684645740,-500.0,0.00021917,4]
[346060697,1734684645749,-506.45980254,0.00021917,4]
[346060698,1734684645758,-500.0,0.00021917,4]
[346060699,1734684645773,-220.38401069,0.00021917,4]
[346060700,1734684645782,-510.62457604,0.00021917,4]
[346060702,1734684645793,-300.703655,0.00021917,2]
[346060703,1734684645802,-500.0,0.00021917,4]
[346060704,1734684645817,-500.0,0.00021917,4]
[346060706,1734684645826,-500.0,0.00021917,4]